fUSD/lending_fUSD_20250607
["ID","MTS","AMOUNT","RATE_DAILY","PERIOD"]
[364917794,1749298247208,-500.0,0.00020711,2]
[364917795,1749298247217,-500.0,0.00020711,2]
[364917796,1749298247226,-500.0,0.00020711,2]
[364917797,1749298247236,-500.0,0.00020711,2]
[364917798,1749298247245,-500.0,0.00020711,2]
[364917799,1749298247254,-500.0,0.00020711,2]
[364917800,1749298247264,-500.0,0.00020711,2]
[364917801,1749298247273,-500.0,0.00020711,2]
[364917802,1749298247283,-500.0,0.00020711,2]
[364917803,1749298247293,-500.0,0.00020711,2]
[364917804,1749298247302,-500.0,0.00020711,2]
[364917805,1749298247311,-500.0,0.00020711,2]
[364917806,1749298247321,-500.0,0.00020711,2]
[364917807,1749298247331,-123.45629009,0.00020711,2]
[364917808,1749298256190,-376.54370991,0.00020711,2]
[364917809,1749298256200,-334.27527084,0.00020711,2]
[364917813,1749298477222,-250.0,0.00019,2]
[364917814,1749298477246,-168.0,0.00019786,2]
[364917815,1749298477268,-168.0,0.00019822,2]
[364917816,1749298477290,-19414.0,0.00019913,2]
[364917820,1749298621256,-507.21,0.00021945,30]
[364917821,1749298644819,-1000.0,0.000209,7]
[364917822,1749298644842,-151.0,0.00020948,7]
[364917823,1749298644867,-207.78377336,0.00021493,8]
[364917824,1749298644888,-150.0,0.00021802,7]
[364917825,1749298665463,-333.83,0.00019178,2]
[364917826,1749298665488,-2500.0,0.00019813,2]
[364917827,1749298665511,-150.17622664,0.00019913,2]
[364917839,1749299120833,670.70624452,9e-05,2]
[364917844,1749299221172,204.10016148,0.00015,14]
[364917845,1749299237819,-247.79686332,0.00015,2]
[364917846,1749299240633,-193.57919244,0.00015,2]
[364917856,1749299245309,-318.35129098,0.00015,2]
[364917857,1749299248352,-181.64870902,0.00015,2]
[364917858,1749299250651,-151.0,0.00015,2]
[364917862,1749299252550,-193.38213883,0.00015,2]
[364917864,1749299255881,-173.36291506,0.00015,2]
[364917865,1749299258682,-170.30429656,0.00015,2]
[364917866,1749299260720,-197.97244107,0.00015,2]
[364917867,1749299263205,-189.09,0.00015,2]
[364917868,1749299267565,-167.69683637,0.00015,2]
[364917869,1749299270991,-175.49300185,0.00015,2]
[364917870,1749299273283,-250.0,0.00015,2]
[364917871,1749299278244,-151.0,0.00015,2]
[364917872,1749299279895,-151.0,0.00015,2]
[364917873,1749299282592,-151.0,0.00015,2]
[364917874,1749299286320,-93.4713952,0.00015,2]
[364917875,1749299308455,1876.93177616,0.0001,2]
[364917876,1749299310378,205.72872837,7.888e-05,2]
[364917877,1749299312513,-235.0,0.000169,5]
[364917880,1749299327105,7615.70652,0.00013368,2]
[364917895,1749299403716,338.92,0.00013699,2]
[364917896,1749299405204,-151.0,0.00017079,2]
[364917897,1749299405229,-44.75433641,0.00017083,2]
[364917898,1749299407813,-151.0,0.00017083,2]
[364917901,1749299410737,-54.24566359,0.00017083,2]
[364917902,1749299410762,-151.0,0.00017087,2]
[364917903,1749299410786,-44.75433641,0.00017095,2]
[364917904,1749299415046,-106.24566359,0.00017095,2]
[364917905,1749299415071,-44.75433641,0.00017137,2]
[364917906,1749299417453,151.0,0.00017056,2]
[364917929,1749299432367,-612.375005,0.00017543,2]
[364917931,1749299432380,-775.994995,0.00017543,2]
[364917933,1749299432391,-300.0,0.00017999,2]
[364917935,1749299432401,-445.63844158,0.00017999,2]
[364917937,1749299432413,-472.71538587,0.00017999,2]
[364917940,1749299432425,-281.64617255,0.00017999,2]
[364917941,1749299432435,-802.87263824,0.00018,2]
[364917944,1749299432450,-2623.6595717,0.00018,2]
[364918668,1749299439945,-151.0,0.00017035,2]
[364918670,1749299439955,-3443.67802,0.00018,2]
[364918672,1749299439968,-27473.68373244,0.00018,2]
[364918675,1749299439979,-1000.0,0.00018701,2]
[364918677,1749299439989,-150.0,0.00018756,7]
[364918679,1749299439999,-168.07,0.00018761,2]
[364918681,1749299440009,-250.0,0.00018787,2]
[364918683,1749299440019,-151.0,0.00019178,2]
[364918685,1749299440030,-709.2820809,0.0001919,2]
[364918687,1749299440041,-1000.0,0.00019214,2]
[364918689,1749299440051,-250.0,0.00019214,2]
[364918691,1749299440061,-1000.0,0.00019237,2]
[364918693,1749299440070,-250.0,0.00019298,2]
[364918695,1749299440079,-205.0,0.00019301,2]
[364918697,1749299440089,-900.0,0.000194,7]
[364918699,1749299440099,-1005.82602038,0.000194,2]
[364918701,1749299440109,-43965.07917517,0.000194,2]
[364918703,1749299440119,-163.55,0.00019431,2]
[364918705,1749299440129,-1900.0,0.000195,7]
[364918707,1749299440139,-2900.0,0.000196,7]
[364918709,1749299440149,-420.0,0.00019639,2]
[364918711,1749299440159,-3900.0,0.000197,7]
[364918713,1749299440168,-156.587,0.00019726,2]
[364918715,1749299440178,-1680.0,0.00019735,2]
[364918717,1749299440188,-290.43,0.0001976,2]
[364918719,1749299440198,-4900.0,0.000198,7]
[364918721,1749299440208,-1388.37,0.00019807,2]
[364918723,1749299440217,-179.42905807,0.0001987,2]
[364918725,1749299440227,-5914.15,0.00019879,2]
[364918728,1749299440238,-500.0,0.00019879,2]
[364918730,1749299440248,-153.52466793,0.00019899,2]
[364918732,1749299440258,-761.05550996,0.000199,3]
[364918734,1749299440273,-900.0,0.000199,7]
[364918736,1749299440283,-2384.03173568,0.000199,2]
[364918738,1749299440293,-35126.65907264,0.000199,2]
[364918740,1749299440303,-590.1339914,0.000199,2]
[364918742,1749299440314,-159.63510569,0.000199,2]
[364918744,1749299440324,-162.95459081,0.000199,2]
[364918746,1749299440335,-1957.856,0.00019901,2]
[364918749,1749299440345,-500.0,0.00019901,2]
[364918751,1749299440355,-157.82470807,0.00019901,2]
[364918753,1749299440366,-207.4,0.00019901,2]
[364918755,1749299440375,-300.0,0.00019912,2]
[364918757,1749299440386,-4335.82377336,0.00019913,2]
[364918759,1749299440396,-2030.296672,0.00019956,2]
[364918761,1749299440407,-500.0,0.00019973,2]
[364918763,1749299440418,-500.0,0.00019973,2]
[364918765,1749299440429,-500.0,0.00019973,2]
[364918767,1749299440439,-1865.03,0.00019989,2]
[364918769,1749299440449,-1865.03,0.00019989,2]
[364918771,1749299440459,-150.96,0.00019989,2]
[364918773,1749299440470,-150.96,0.00019989,2]
[364918775,1749299440480,-150.96,0.00019989,2]
[364918777,1749299440490,-150.96,0.00019989,2]
[364918779,1749299440503,-150.96,0.00019989,2]
[364918781,1749299440513,-150.96,0.00019989,2]
[364918783,1749299440524,-150.96,0.00019989,2]
[364918785,1749299440534,-150.96,0.00019989,2]
[364918787,1749299440544,-150.96,0.00019989,2]
[364918789,1749299440553,-150.96,0.00019989,2]
[364918791,1749299440563,-150.96,0.00019989,2]
[364918795,1749299440573,-150.96,0.00019989,2]
[364918800,1749299440584,-150.96,0.00019989,2]
[364918802,1749299440594,-150.96,0.00019989,2]
[364918804,1749299440604,-150.96,0.00019989,2]
[364918806,1749299440614,-150.96,0.00019989,2]
[364918808,1749299440624,-150.96,0.00019989,2]
[364918811,1749299440635,-150.96,0.00019989,2]
[364918813,1749299440645,-150.96,0.00019989,2]
[364918815,1749299440655,-150.96,0.00019989,2]
[364918817,1749299440665,-150.96,0.00019989,2]
[364918819,1749299440675,-150.96,0.00019989,2]
[364918821,1749299440686,-172.29653542,0.00019998,2]
[364918823,1749299440695,-579.04268409,0.00019998,2]
[364918825,1749299440710,-279.13012461,0.00019998,2]
[364918827,1749299440720,-500.0,0.00019998,2]
[364918829,1749299440730,-500.0,0.00019998,2]
[364918831,1749299440740,-500.0,0.00019998,2]
[364918833,1749299440750,-500.0,0.00019998,2]
[364918835,1749299440760,-500.0,0.00019998,2]
[364918837,1749299440770,-500.0,0.00019998,2]
[364918839,1749299440780,-500.0,0.00019998,2]
[364918841,1749299440790,-500.0,0.00019998,2]
[364918844,1749299440800,-500.0,0.00019998,2]
[364918846,1749299440810,-500.0,0.00019998,2]
[364918848,1749299440823,-500.0,0.00019998,2]
[364918850,1749299440833,-500.0,0.00019998,2]
[364918852,1749299440842,-500.0,0.00019998,2]
[364918854,1749299440853,-500.0,0.00019998,2]
[364918856,1749299440865,-500.0,0.00019998,2]
[364918858,1749299440875,-500.0,0.00019998,2]
[364918860,1749299440884,-500.0,0.00019998,2]
[364918862,1749299440894,-500.0,0.00019998,2]
[364918864,1749299440904,-500.0,0.00019998,2]
[364918866,1749299440914,-500.0,0.00019998,2]
[364918868,1749299440925,-224.68819366,0.00019998,2]
[364918870,1749299440936,-500.0,0.00019998,2]
[364918872,1749299440948,-5385144.89425118,0.00019999,2]
[364918875,1749299440966,-12183.79647797,0.00019999,2]
[364918878,1749299440979,-1688.35185699,0.00019999,2]
[364918881,1749299441002,-657.96086,0.00019999,2]
[364918908,1749299441263,-152.78042401,0.00019999,2]
[364918910,1749299441276,-355.72425126,0.00019999,2]
[364918911,1749299441308,-1367.10050414,0.00019999,2]
[364918912,1749299441319,-1054.3152148,0.00019999,2]
[364918939,1749299441648,343.0,0.000167,5]
[364919011,1749299443035,-654.10406101,0.00019999,2]
[364919012,1749299443090,-6206.5033518,0.00019999,2]
[364919013,1749299443200,-1318.3450002,0.00019999,2]
[364919019,1749299445803,-3712.08920011,0.00019999,2]
[364919020,1749299445862,-599.38775637,0.00019999,2]
[364919021,1749299445878,-268.987887,0.00019999,2]
[364919022,1749299445889,-3447.61611172,0.00019999,2]
[364919023,1749299445900,-897.20677172,0.00019999,2]
[364919024,1749299445978,-9320.70178531,0.00019999,2]
[364919025,1749299445990,-1002.45,0.00019999,2]
[364919026,1749299446102,-663.69150534,0.00019999,2]
[364919027,1749299446115,-2297.07506595,0.00019999,2]
[364919028,1749299446127,-288.73407727,0.00019999,2]
[364919029,1749299446141,-3434.12887577,0.00019999,2]
[364919030,1749299446157,-10596.12041374,0.00019999,2]
[364919031,1749299446170,-256.1886009,0.00019999,2]
[364919032,1749299446186,-2060.784648,0.00019999,2]
[364919035,1749299504212,10000.0,0.0001721,60]
[364919036,1749299521222,10000.0,0.00017711,120]
[364919037,1749299535224,7000.0,0.00017,30]
[364919038,1749299535260,3000.0,0.00017,30]
[364919039,1749299566184,9525.7,0.00017711,120]
[364919052,1749300390307,-205.0,0.00017573,2]
[364919053,1749300390331,-58.19194834,0.00017861,2]
[364919099,1749300438956,321.97,0.00013699,2]
[364919104,1749300587335,201.51721791,0.00016916,2]
[364919117,1749300631977,-193.38213883,0.00017848,2]
[364919118,1749300631987,-190.88401679,0.00017861,2]
[364919119,1749300632086,-651.48061072,0.00017861,2]
[364919120,1749300632097,-250.0,0.00017905,2]
[364919121,1749300632107,-1200.0,0.00017948,2]
[364919122,1749300632116,-300.0,0.00017948,2]
[364919123,1749300632126,-5586.30022562,0.00017949,2]
[364919124,1749300632138,-513.34384438,0.00017949,2]
[364919125,1749300632169,-6970.2913294,0.00017949,2]
[364919126,1749300632179,-250.0,0.0001796,2]
[364919127,1749300632189,-1249.53,0.00017961,2]
[364919128,1749300632199,-1957.856,0.0001808,2]
[364919129,1749300632209,-207.4,0.0001808,2]
[364919130,1749300632219,-2030.296672,0.00018135,2]
[364919131,1749300632229,-2105.41764886,0.0001819,2]
[364919132,1749300632238,-377.36991441,0.00018245,2]
[364919133,1749300632291,-1805.94818746,0.00018245,2]
[364919134,1749300632302,-1196.56431532,0.000183,2]
[364919135,1749300632311,-312.26,0.0001848,2]
[364919136,1749300632321,-150.0,0.00018553,7]
[364919137,1749300632330,-1000.0,0.00018559,2]
[364919138,1749300632340,-250.0,0.00018821,2]
[364919139,1749300632350,-173.36,0.0001886,2]
[364919140,1749300632359,-205.0,0.00018899,3]
[364919141,1749300632370,-250.0,0.00019,2]
[364919142,1749300632380,-1139.86,0.00019065,2]
[364919143,1749300632390,-162.43,0.00019083,2]
[364919144,1749300632399,-300.0,0.00019175,2]
[364919145,1749300632409,-151.0,0.00019178,2]
[364919146,1749300632420,-267.06,0.00019178,2]
[364919147,1749300632429,-1800.88900111,0.00019186,2]
[364919625,1749300637870,-553.48899889,0.00019186,2]
[364919627,1749300637885,-174.262,0.00019186,2]
[364919629,1749300637894,-8028.73150913,0.00019186,2]
[364919631,1749300637906,-4446.15199774,0.00019186,2]
[364919633,1749300637915,-23900.0,0.00019187,2]
[364919636,1749300637925,-2118.82081212,0.00019346,2]
[364919642,1749300637982,-381.17918788,0.00019346,2]
[364919644,1749300637992,-215.0738,0.00019449,2]
[364919646,1749300638001,-420.0,0.00019584,2]
[364919648,1749300638011,-250.0,0.00019647,2]
[364919650,1749300638021,-16.45304684,0.00019681,2]
[364919658,1749300638090,-1663.54695316,0.00019681,2]
[364919660,1749300638100,-28.77856764,0.00019726,2]
[364919857,1749300640214,-127.80843236,0.00019726,2]
[364919859,1749300640224,-312.88827896,0.00019744,4]
[364919861,1749300640236,-401.536,0.00019744,4]
[364919863,1749300640248,-85.57572104,0.00019744,4]
[364919865,1749300640258,-1000.0,0.00019788,2]
[364919867,1749300640268,-2500.0,0.000198,2]
[364919869,1749300640278,-300.0,0.000198,7]
[364919871,1749300640287,-500.0,0.00019873,2]
[364919873,1749300640297,-500.0,0.00019873,2]
[364919875,1749300640307,-33226.98737094,0.00019873,2]
[364919877,1749300640318,-290.43,0.00019879,2]
[364919879,1749300640328,-1681.52,0.00019879,2]
[364919881,1749300640338,-2985.03,0.00019879,2]
[364919883,1749300640347,-151.0,0.00019888,2]
[364919885,1749300640361,-151.0,0.00019888,2]
[364919887,1749300640371,-152.44457682,0.00019888,2]
[364919889,1749300640380,-500.0,0.00019888,2]
[364919891,1749300640390,-500.0,0.00019888,2]
[364919893,1749300640399,-500.0,0.00019888,2]
[364919895,1749300640409,-500.0,0.00019888,2]
[364919897,1749300640419,-500.0,0.00019888,2]
[364919899,1749300640429,-500.0,0.00019888,2]
[364919901,1749300640439,-500.0,0.00019888,2]
[364919903,1749300640449,-500.0,0.00019888,2]
[364919905,1749300640459,-500.0,0.00019888,2]
[364919907,1749300640469,-1000.0,0.00019888,2]
[364919909,1749300640479,-500.0,0.00019888,2]
[364919911,1749300640489,-500.0,0.00019888,2]
[364919913,1749300640499,-151.0,0.00019888,2]
[364919915,1749300640510,-500.0,0.00019888,2]
[364919917,1749300640521,-500.0,0.00019888,2]
[364919919,1749300640531,-523.37997651,0.00019888,2]
[364919921,1749300640542,-500.0,0.00019888,2]
[364919923,1749300640557,-500.0,0.00019888,2]
[364919925,1749300640567,-500.0,0.00019888,2]
[364919927,1749300640577,-500.0,0.00019888,2]
[364919929,1749300640588,-500.0,0.00019888,2]
[364919931,1749300640598,-500.0,0.00019888,2]
[364919933,1749300640608,-500.0,0.00019888,2]
[364919935,1749300640618,-500.0,0.00019888,2]
[364919937,1749300640630,-500.0,0.00019888,2]
[364919939,1749300640640,-500.0,0.00019888,2]
[364919941,1749300640650,-284.31545951,0.00019888,2]
[364919943,1749300640660,-500.0,0.00019888,2]
[364919945,1749300640671,-1200.0,0.00019888,2]
[364919947,1749300640681,-500.0,0.00019888,2]
[364919949,1749300640691,-1200.0,0.00019888,2]
[364919951,1749300640701,-500.0,0.00019888,2]
[364919953,1749300640710,-1200.0,0.00019888,2]
[364919955,1749300640720,-1200.0,0.00019888,2]
[364919957,1749300640729,-1200.0,0.00019888,2]
[364919959,1749300640740,-1200.0,0.00019888,2]
[364919961,1749300640749,-1200.0,0.00019888,2]
[364919963,1749300640760,-151.0,0.00019888,2]
[364919965,1749300640771,-1200.0,0.00019888,2]
[364919967,1749300640780,-151.0,0.00019888,2]
[364919969,1749300640790,-1200.0,0.00019888,2]
[364919971,1749300640800,-151.0,0.00019888,2]
[364919974,1749300640821,-1200.0,0.00019888,2]
[364919976,1749300640832,-151.0,0.00019888,2]
[364919978,1749300640842,-1200.0,0.00019888,2]
[364919980,1749300640853,-151.0,0.00019888,2]
[364919982,1749300640863,-1200.0,0.00019888,2]
[364919984,1749300640873,-1200.0,0.00019888,2]
[364919986,1749300640883,-151.0,0.00019888,2]
[364919988,1749300640894,-1200.0,0.00019888,2]
[364919990,1749300640904,-151.0,0.00019888,2]
[364919992,1749300640914,-668.65185757,0.00019888,2]
[364919994,1749300640924,-349.33892291,0.00019888,2]
[364919996,1749300640934,-151.0,0.00019888,2]
[364919998,1749300640944,-151.0,0.00019888,2]
[364920000,1749300640954,-300.0,0.00019888,2]
[364920002,1749300640965,-300.0,0.00019888,2]
[364920004,1749300640975,-300.0,0.00019888,2]
[364920006,1749300640985,-300.0,0.00019888,2]
[364920008,1749300640994,-300.0,0.00019888,2]
[364920010,1749300641004,-300.0,0.00019888,2]
[364920013,1749300641015,-300.0,0.00019888,2]
[364920015,1749300641024,-300.0,0.00019888,2]
[364920017,1749300641033,-300.0,0.00019888,2]
[364920019,1749300641043,-300.0,0.00019888,2]
[364920020,1749300641052,-300.0,0.00019888,2]
[364920022,1749300641062,-300.0,0.00019888,2]
[364920024,1749300641072,-300.0,0.00019888,2]
[364920026,1749300641082,-300.0,0.00019888,2]
[364920028,1749300641091,-300.0,0.00019888,2]
[364920030,1749300641100,-300.0,0.00019888,2]
[364920032,1749300641110,-7974.3191,0.000199,2]
[364920035,1749300641120,-456.4204,0.000199,2]
[364920037,1749300641130,-3272.9104,0.000199,2]
[364920039,1749300641140,-1753.67244462,0.000199,2]
[364920041,1749300641149,-5000.0,0.000199,2]
[364920043,1749300641159,-153.52466793,0.000199,2]
[364920045,1749300641169,-600.0,0.000199,7]
[364920047,1749300641179,-157.96100876,0.000199,2]
[364920049,1749300641189,-150.0,0.00019931,2]
[364920051,1749300641199,-500.0,0.00019973,2]
[364920053,1749300641208,-500.67551023,0.00019973,2]
[364920055,1749300641218,-548.3778177,0.00019973,2]
[364920057,1749300641227,-508.28886087,0.00019973,2]
[364920059,1749300641236,-500.0,0.00019973,2]
[364920061,1749300641251,-500.0,0.00019973,2]
[364920063,1749300641261,-500.0,0.00019973,2]
[364920065,1749300641270,-500.0,0.00019973,2]
[364920067,1749300641280,-500.0,0.00019973,2]
[364920069,1749300641290,-500.0,0.00019973,2]
[364920071,1749300641299,-500.0,0.00019973,2]
[364920073,1749300641312,-500.0,0.00019973,2]
[364920076,1749300641322,-500.0,0.00019973,2]
[364920077,1749300641331,-1475.0,0.00019973,2]
[364920080,1749300641341,-500.0,0.00019973,2]
[364920082,1749300641351,-3678.0,0.00019976,2]
[364920084,1749300641361,-500.0,0.00019976,2]
[364920086,1749300641371,-500.0,0.00019988,2]
[364920088,1749300641382,-500.0,0.00019988,2]
[364920090,1749300641392,-500.0,0.00019988,2]
[364920092,1749300641401,-150.0,0.00019988,2]
[364920094,1749300641411,-518.08,0.00019998,2]
[364920096,1749300641421,-300.0,0.00019999,2]
[364920098,1749300641431,-300.0,0.00019999,2]
[364920100,1749300641442,-1001.4498,0.00019999,2]
[364920102,1749300641452,-1001.4498,0.00019999,2]
[364920104,1749300641462,-200.0,0.00019999,2]
[364920106,1749300641472,-500.0,0.00019999,2]
[364920108,1749300641482,-500.0,0.00019999,2]
[364920110,1749300641492,-405.32987887,0.00019999,2]
[364920112,1749300641502,-500.0,0.00019999,2]
[364920114,1749300641512,-531.55418743,0.00019999,2]
[364920116,1749300641523,-500.0,0.00019999,2]
[364920118,1749300641533,-500.0,0.00019999,2]
[364920120,1749300641543,-500.0,0.00019999,2]
[364920122,1749300641559,-500.0,0.00019999,2]
[364920124,1749300641569,-500.0,0.00019999,2]
[364920126,1749300641579,-500.0,0.00019999,2]
[364920127,1749300641590,-500.0,0.00019999,2]
[364920128,1749300641600,-500.0,0.00019999,2]
[364920129,1749300641610,-572.08793121,0.00019999,2]
[364920130,1749300641620,-500.0,0.00019999,2]
[364920131,1749300641631,-195.39108723,0.00019999,2]
[364920132,1749300641641,-500.0,0.00019999,2]
[364920133,1749300641652,-500.0,0.00019999,2]
[364920134,1749300641662,-500.0,0.00019999,2]
[364920135,1749300641673,-500.0,0.00019999,2]
[364920136,1749300641683,-500.0,0.00019999,2]
[364920138,1749300641698,-500.0,0.00019999,2]
[364920140,1749300641708,-500.0,0.00019999,2]
[364920142,1749300641719,-500.0,0.00019999,2]
[364920145,1749300641729,-500.0,0.00019999,2]
[364920147,1749300641739,-500.0,0.00019999,2]
[364920149,1749300641750,-500.0,0.00019999,2]
[364920151,1749300641760,-500.0,0.00019999,2]
[364920153,1749300641769,-500.0,0.00019999,2]
[364920155,1749300641779,-500.0,0.00019999,2]
[364920157,1749300641790,-500.0,0.00019999,2]
[364920158,1749300641800,-542.74653079,0.00019999,2]
[364920161,1749300641812,-500.0,0.00019999,2]
[364920163,1749300641823,-500.0,0.00019999,2]
[364920165,1749300641833,-98534.89168906,0.0002,2]
[364920223,1749300642388,-8716.09497501,0.0002,2]
[364920227,1749300642416,-26334.00000001,0.0002,2]
[364920229,1749300642428,-3409.17246,0.0002,2]
[364920231,1749300642440,-7871.7882867,0.0002,2]
[364920236,1749300642472,-1018.95633391,0.0002,2]
[364920238,1749300642483,-2646.8,0.0002,2]
[364920301,1749300643040,-12921.19806,0.000199,2]
[364920318,1749300643197,-1591.71130002,0.000199,2]
[364920611,1749300646086,-1189.23010292,0.000199,2]
[364920618,1749300646145,-1349.86102656,0.000199,2]
[364920620,1749300646158,-1530.593,0.000199,2]
[364922298,1749300773953,5562.0,0.000153,5]
[364922299,1749300774185,3914.51278209,0.000151,3]
[364922300,1749300774206,1647.48721791,0.000151,3]
[364922301,1749300774428,8352.51278209,0.000149,2]
[364922302,1749300774457,10000.0,0.000149,2]
[364922303,1749300774478,10000.0,0.000149,2]
[364922304,1749300774501,10000.0,0.000149,2]
[364922305,1749300774522,10000.0,0.000149,2]
[364922306,1749300774544,1497.48721791,0.000149,2]
[364922338,1749301084870,-263.19194834,0.00017053,2]
[364922339,1749301101147,-271.73129478,0.00017053,2]
[364922341,1749301102804,-228.5055621,0.00017053,2]
[364922342,1749301105049,-286.38450104,0.00017053,2]
[364922343,1749301107203,-151.0,0.00017053,2]
[364922344,1749301109531,-99.61669374,0.00017053,2]
[364922345,1749301115307,937.0,0.00015,5]
[364922351,1749301359519,1546.24775165,0.0001,2]
[364922352,1749301374932,168.44731164,4.9e-07,2]
[364922358,1749301633156,332.5,0.00013699,2]
[364922386,1749301811460,205.0,0.00016225,2]
[364922412,1749301832495,-205.0,0.00017551,3]
[364922414,1749301832505,-163.04,0.0001831,2]
[364922416,1749301832515,-62.88037133,0.00018314,2]
[364922418,1749301832527,-187.11962867,0.00018314,2]
[364922420,1749301832536,-290.43,0.00018317,2]
[364922422,1749301832546,-168.07,0.00018479,2]
[364922424,1749301832555,-500.0,0.0001852,2]
[364922426,1749301832565,-279.94024879,0.00018547,2]
[364922429,1749301832589,-920.05975121,0.00018547,2]
[364922431,1749301832598,-1148.82508034,0.00018548,2]
[364922433,1749301832610,-2627.28484452,0.00018548,2]
[364922435,1749301832621,-490.5,0.00018548,2]
[364922442,1749301832676,-663.86994497,0.00018548,2]
[364922444,1749301832687,-2585.13,0.00018548,2]
[364922448,1749301832719,-328.26013017,0.00018548,2]
[364922450,1749301832728,-551.0,0.0001874,2]
[364922452,1749301832738,-300.0,0.00018742,2]
[364922487,1749301833061,-9125.91554552,0.00018744,2]
[364922489,1749301833074,-4184.511012,0.00018744,2]
[364922491,1749301833086,-1845.98344248,0.00018744,2]
[364922493,1749301833097,-1000.0,0.00018769,2]
[364922495,1749301833107,-250.0,0.0001887,2]
[364922497,1749301833117,-205.0,0.00018878,5]
[364922499,1749301833126,-250.0,0.00018947,2]
[364922500,1749301833136,-2705.74475845,0.00018994,2]
[364922502,1749301833146,-563.24705907,0.00018995,2]
[364922505,1749301833158,-1366.36535,0.00018995,2]
[364922507,1749301833170,-398.0,0.00018995,2]
[364922509,1749301833182,-773.07819536,0.00018995,2]
[364922511,1749301833199,-20799.30939557,0.00018995,2]
[364922513,1749301833209,-200.0,0.00019008,2]
[364922515,1749301833218,-1883.502,0.0001901,2]
[364922516,1749301833229,-150.0,0.0001901,2]
[364922518,1749301833239,-174.26393938,0.0001901,2]
[364922520,1749301833248,-3226.14,0.00019021,2]
[364922522,1749301833258,-3445.36,0.00019024,2]
[364922524,1749301833268,-1957.856,0.0001913,2]
[364922526,1749301833278,-500.0,0.0001913,2]
[364922528,1749301833288,-157.82470807,0.0001913,2]
[364922530,1749301833298,-207.4,0.0001913,2]
[364922532,1749301833308,-151.0,0.00019178,2]
[364922534,1749301833317,-255.41,0.00019178,2]
[364922536,1749301833327,-2030.296672,0.00019185,2]
[364922538,1749301833336,-1987.81023935,0.0001924,2]
[364922540,1749301833348,-117.60740951,0.0001924,2]
[364922542,1749301833358,-1605.19259049,0.00019295,2]
[364922544,1749301833370,-578.12551138,0.00019295,2]
[364922546,1749301833380,-1300.0,0.000193,7]
[364922548,1749301833390,-1300.43,0.00019316,2]
[364922550,1749301833400,-256.6825883,0.0001935,2]
[364922554,1749301833428,-2007.41828334,0.0001935,2]
[364922556,1749301833438,-2600.0,0.000194,7]
[364922558,1749301833448,-2347.87260389,0.00019405,2]
[364922560,1749301833457,-854.8374674,0.0001946,2]
[364922562,1749301833470,-1579.90642284,0.0001946,2]
[364922564,1749301833479,-3900.0,0.000195,7]
[364922566,1749301833489,-2524.82941417,0.00019515,2]
[364922568,1749301833499,-2618.2481025,0.0001957,2]
[364922570,1749301833509,-44.88670026,0.00019584,2]
[364922666,1749301838122,-526.40892813,0.00019403,2]
[364922667,1749301838132,-190.48366412,0.00019403,2]
[364922668,1749301838142,-298.30954872,0.00019403,2]
[364922669,1749301838152,-108.63796767,0.00019584,2]
[364922670,1749301838161,-5200.0,0.000196,7]
[364922671,1749301838171,-993.14918681,0.00019617,2]
[364922672,1749301838180,-163.04,0.00019618,2]